bitfinex-derivatives/quotes_BTCF0:USTF0_20210703
["timestamp","ask_amount","ask_price","bid_price","bid_amount"]
[1625285951766,4.61627544,33571.0,33570.0,0.059]
[1625285952016,4.62757571,33571.0,33570.0,0.059]
[1625285952616,4.68657571,33571.0,33567.0,0.48115088]
[1625285953066,4.67527544,33571.0,33568.0,0.00634281]
[1625285953366,0.01130044,33570.0,33568.0,0.00634281]
[1625285953467,0.07030044,33570.0,33568.0,0.00634281]
[1625285953869,0.059,33570.0,33568.0,0.00634281]
[1625285955368,0.118,33570.0,33568.0,0.00634281]
[1625285956470,0.118,33570.0,33567.0,0.48115088]
[1625285957171,0.118,33570.0,33568.0,0.00634279]
[1625285957523,0.2082,33570.0,33568.0,0.00634279]
[1625285957671,0.2082,33570.0,33567.0,0.48115088]
[1625285957922,0.118,33570.0,33567.0,0.48115088]
[1625285958975,0.2083,33570.0,33567.0,0.48115088]
[1625285959076,0.118,33570.0,33567.0,0.48115088]
[1625285960179,0.059,33570.0,33567.0,0.48115088]
[1625285960279,0.118,33570.0,33567.0,0.48115088]
[1625285960830,0.059,33570.0,33567.0,0.48115088]
[1625285961031,0.059,33570.0,33567.0,0.54015088]
[1625285961133,0.059,33570.0,33568.0,0.00634161]
[1625285961231,0.059,33570.0,33568.0,0.29199161]
[1625285961334,0.059,33570.0,33568.0,0.35099161]
[1625285961534,0.059,33570.0,33568.0,0.43744135]
[1625285961633,0.059,33570.0,33569.0,0.00634094]
[1625285961732,0.059,33570.0,33569.0,5.35704094]
[1625285961832,1.9969,33584.0,33569.0,5.35704094]
[1625285962133,0.24057544,33581.0,33580.0,0.52704544]
[1625285962232,0.29957544,33581.0,33580.0,0.52704544]
[1625285962482,0.31087534,33581.0,33580.0,0.52704544]
[1625285963433,0.36987534,33581.0,33580.0,0.52704544]
[1625285963533,0.45947534,33581.0,33580.0,0.52704544]
[1625285963634,0.45947534,33581.0,33580.0,0.24057544]
[1625285963635,0.68728534,33581.0,33580.0,0.24057544]
[1625285963789,0.53868534,33581.0,33580.0,0.18157544]
[1625285963985,5.77418534,33581.0,33580.0,0.18157544]
[1625285966038,5.71518534,33581.0,33580.0,0.18157544]
[1625285966138,5.77418534,33581.0,33580.0,0.18157544]
[1625285966238,0.59768534,33581.0,33580.0,0.18157544]
[1625285966338,0.31087534,33581.0,33580.0,0.18157544]
[1625285966548,0.25187534,33581.0,33580.0,0.18157544]
[1625285967092,4.39717534,33581.0,33580.0,0.18157544]
[1625285967191,4.45617534,33581.0,33580.0,0.18157544]
[1625285967644,0.25187534,33581.0,33580.0,0.18157544]
[1625285968047,0.31087534,33581.0,33580.0,0.18157544]
[1625285968149,4.45637534,33581.0,33580.0,0.18157544]
[1625285968901,0.31087534,33581.0,33580.0,0.18157544]
[1625285971157,4.46377534,33581.0,33580.0,0.18157544]
[1625285971757,4.71492534,33581.0,33580.0,0.18157544]
[1625285974912,4.77392534,33581.0,33580.0,0.18157544]
[1625285975114,4.71492534,33581.0,33580.0,0.18157544]
[1625285975614,4.77392534,33581.0,33580.0,0.18157544]
[1625285976265,0.62102534,33581.0,33580.0,0.18157544]
[1625285978222,0.83211797,33581.0,33580.0,0.18157544]
[1625285978475,0.77311797,33581.0,33580.0,0.18157544]
[1625285978723,0.56202534,33581.0,33580.0,0.18157544]
[1625285978822,0.31087534,33581.0,33580.0,0.18157544]
[1625285984888,0.36987534,33581.0,33580.0,0.18157544]
[1625285985388,4.12837534,33581.0,33580.0,0.18157544]
[1625285985741,4.33961804,33581.0,33580.0,0.18157544]
[1625285986489,0.58111804,33581.0,33580.0,0.18157544]
[1625285989444,4.29851804,33581.0,33577.0,0.24057544]
[1625285989795,0.01130102,33580.0,33578.0,0.00634062]
[1625285989894,0.12930102,33580.0,33578.0,0.00634062]
[1625285990246,0.24057544,33579.0,33578.0,0.00634062]
[1625285990346,0.56117644,33579.0,33578.0,0.00634062]
[1625285992451,0.56117644,33579.0,33577.0,0.24057544]
[1625285992651,0.01130111,33578.0,33577.0,0.24057544]
[1625285992850,0.12930111,33578.0,33577.0,0.24057544]
[1625285993201,0.12930111,33578.0,33577.0,0.24691618]
[1625285996615,0.12930111,33578.0,33577.0,0.24057544]
[1625285996913,0.12930111,33578.0,33577.0,0.24691627]
[1625286010442,0.12930111,33578.0,33577.0,0.00634083]
[1625286010545,0.40215111,33578.0,33577.0,0.00634083]
[1625286010843,0.49195111,33578.0,33572.0,0.00634105]
[1625286011147,0.00634083,33576.0,33572.0,0.00634105]
[1625286011294,0.01130086,33577.0,33572.0,0.00634105]
[1625286011295,4.8811,33573.0,33572.0,0.00634105]
[1625286011495,4.9401,33573.0,33572.0,0.00634105]
[1625286011598,4.9991,33573.0,33572.0,0.00634105]
[1625286011748,4.9991,33573.0,33569.0,0.00634181]
[1625286011749,0.12930149,33573.0,33569.0,0.00634181]
[1625286011947,0.12930149,33573.0,33572.0,0.00634196]
[1625286012250,0.12930149,33573.0,33567.0,1.0933758]
[1625286012251,0.12930149,33573.0,33568.0,0.00634205]
[1625286012350,0.24057544,33572.0,33571.0,0.24057544]
[1625286012452,0.29957544,33572.0,33571.0,0.24057544]
[1625286012550,0.36987727,33572.0,33571.0,0.24057544]
[1625286012751,0.36987727,33572.0,33571.0,0.24691749]
[1625286014355,0.61045271,33572.0,33571.0,0.24691749]
[1625286015606,0.55145271,33572.0,33571.0,0.24691749]
[1625286019419,0.61045271,33572.0,33571.0,0.24691749]
[1625286020369,0.61045271,33572.0,33571.0,0.24057544]
[1625286023175,4.96935271,33572.0,33571.0,0.24057544]
[1625286024077,0.61045271,33572.0,33571.0,0.24057544]
[1625286024876,4.37485271,33572.0,33571.0,0.24057544]
[1625286026429,0.61045271,33572.0,33571.0,0.24057544]
[1625286029535,0.61045271,33572.0,33567.0,0.24057544]
[1625286029936,0.01130356,33571.0,33568.0,0.00634176]
[1625286030037,0.0895,33570.0,33568.0,0.00634176]
[1625286030137,0.1485,33570.0,33568.0,0.00634176]
[1625286030238,0.2075,33570.0,33567.0,0.24057544]
[1625286030437,0.24057544,33568.0,33565.0,0.24057544]
[1625286030587,0.35857544,33568.0,33565.0,0.24057544]
[1625286030787,0.01130392,33567.0,33566.0,0.00634203]
[1625286030888,0.12930392,33567.0,33566.0,0.00634203]
[1625286033642,0.12930392,33567.0,33565.0,0.24057544]
[1625286033742,0.12930392,33567.0,33561.0,0.08800598]
[1625286033942,0.01139759,33566.0,33561.0,0.08800598]
[1625286034041,0.12939759,33566.0,33561.0,0.08800598]
[1625286034242,0.12939759,33566.0,33562.0,0.00629876]
[1625286034445,0.24057544,33563.0,33562.0,0.00629876]
[1625286034545,5.51760544,33563.0,33562.0,0.00629876]
[1625286034945,0.46570544,33563.0,33562.0,0.00629876]
[1625286035249,0.46570544,33563.0,33561.0,0.00629869]
[1625286035697,0.52470544,33563.0,33561.0,0.00629869]
[1625286036298,4.97390544,33563.0,33561.0,0.00629869]
[1625286036399,0.52470544,33563.0,33561.0,0.00629869]
[1625286041860,0.0114019,33562.0,33561.0,0.00629869]
[1625286041960,0.0704019,33562.0,33561.0,0.00629869]
[1625286042411,0.059,33562.0,33561.0,0.00629869]
[1625286047127,0.07040159,33562.0,33561.0,0.00629869]
[1625286047780,0.12940159,33562.0,33557.0,0.24057544]
[1625286048129,0.21960159,33562.0,33557.0,0.24057544]
[1625286048231,0.01141927,33561.0,33558.0,0.00628811]
[1625286048429,0.12941927,33561.0,33558.0,0.00628811]
[1625286048530,0.24057544,33559.0,33558.0,0.00628811]
[1625286048681,0.29957544,33559.0,33558.0,0.00628811]
[1625286048979,0.29957544,33559.0,33554.0,0.00628823]
[1625286049281,0.31099536,33559.0,33553.0,0.3284743]
[1625286049582,0.01141977,33558.0,33554.0,0.00628849]
[1625286049685,0.07041977,33558.0,33554.0,0.00628849]
[1625286050032,0.059,33558.0,33554.0,0.00628849]
[1625286050533,0.24057544,33555.0,33554.0,0.00628849]
[1625286050633,0.61049544,33555.0,33554.0,0.00628849]
[1625286050736,4.78379544,33555.0,33554.0,0.00628849]
[1625286051083,0.55149544,33555.0,33554.0,0.00628849]
[1625286051183,0.61049544,33555.0,33554.0,0.00628849]
[1625286052035,0.55149544,33555.0,33554.0,0.00628849]
[1625286052686,0.61049544,33555.0,33554.0,0.00628849]
[1625286052787,0.55149544,33555.0,33554.0,0.00628849]
[1625286052936,0.61049544,33555.0,33554.0,0.00628849]
[1625286053136,0.55149544,33555.0,33554.0,0.00628849]
[1625286058248,5.57819544,33555.0,33554.0,0.00628849]
[1625286058697,0.55149544,33555.0,33554.0,0.00628849]
[1625286063757,0.61049544,33555.0,33554.0,0.00628849]
[1625286065062,0.55149544,33555.0,33554.0,0.00628849]
[1625286065162,0.61049544,33555.0,33554.0,0.00628849]
[1625286073439,0.55149544,33555.0,33554.0,0.00628849]
[1625286073540,0.24057544,33555.0,33554.0,0.00628849]
[1625286074440,0.29957544,33555.0,33554.0,0.00628849]
[1625286074540,0.24057544,33555.0,33554.0,0.00628849]
[1625286075189,0.29957544,33555.0,33554.0,0.00628849]
[1625286076296,0.31100323,33555.0,33554.0,0.00628849]
[1625286076442,0.25200323,33555.0,33554.0,0.00628849]
[1625286076793,0.24057544,33555.0,33554.0,0.00628849]
[1625286077395,0.29957544,33555.0,33554.0,0.00628849]
[1625286077597,0.25200306,33555.0,33554.0,0.00628849]
[1625286077996,0.31100306,33555.0,33554.0,0.00628849]
[1625286079297,0.25200306,33555.0,33554.0,0.00628849]
[1625286080199,0.31100306,33555.0,33554.0,0.00628849]
[1625286082407,0.31100306,33555.0,33554.0,0.19654849]
[1625286082508,0.25200306,33555.0,33554.0,0.25554849]
[1625286082607,0.24057544,33555.0,33554.0,0.25554849]
[1625286082857,0.24057544,33555.0,33554.0,5.42944849]
[1625286083359,0.24057544,33555.0,33554.0,7.77564908]
[1625286083459,0.24057544,33555.0,33554.0,7.71664908]
[1625286083559,0.24057544,33555.0,33554.0,7.77564908]
[1625286083760,0.24057544,33555.0,33554.0,9.00713046]
[1625286084213,0.24057544,33559.0,33554.0,9.00713046]
[1625286084665,0.24057544,33559.0,33558.0,0.24057544]
[1625286084917,0.24057544,33559.0,33558.0,1.47230354]
[1625286085013,0.24057544,33559.0,33558.0,1.47858571]
[1625286086765,0.24057544,33559.0,33558.0,2.53457261]
[1625286090972,0.24057544,33559.0,33558.0,1.47858571]
[1625286092475,0.24057544,33559.0,33558.0,0.77474108]
[1625286092879,0.24057544,33559.0,33558.0,1.47905504]
[1625286096583,0.24057544,33559.0,33558.0,0.77474108]
[1625286097336,0.24057544,33559.0,33558.0,1.12692783]
[1625286097538,0.29957544,33559.0,33558.0,1.12692783]
[1625286097742,0.29957544,33559.0,33558.0,0.77514305]
[1625286098190,0.29957544,33559.0,33558.0,0.33490942]
[1625286100141,0.29957544,33559.0,33558.0,0.24685761]
[1625286103600,0.24057544,33559.0,33558.0,0.24685761]
[1625286103699,0.29957544,33559.0,33558.0,0.24685761]
[1625286105852,0.24057544,33559.0,33558.0,0.24685761]
[1625286106654,0.29957544,33559.0,33558.0,0.33491905]
[1625286106903,0.24057544,33559.0,33558.0,0.33491905]
[1625286107004,0.29957544,33559.0,33558.0,0.33491905]
[1625286107203,0.29957544,33559.0,33558.0,0.24685761]
[1625286107553,0.24057544,33559.0,33558.0,0.24685761]
[1625286107654,0.29957544,33559.0,33558.0,0.24685761]
[1625286107955,0.24057544,33559.0,33558.0,0.24685761]
[1625286108355,0.24057544,33559.0,33558.0,0.3349211]
[1625286108806,0.24057544,33559.0,33558.0,0.77521967]
[1625286109306,0.24057544,33559.0,33558.0,1.12745552]
[1625286110609,0.29957544,33559.0,33558.0,1.12745552]
[1625286111009,0.24057544,33559.0,33558.0,1.12745552]
[1625286111109,0.29957544,33559.0,33558.0,1.12745552]
[1625286111412,0.29957544,33559.0,33558.0,0.86329285]
[1625286112061,0.29957544,33559.0,33558.0,0.77522823]
[1625286113618,0.29957544,33559.0,33558.0,0.86330009]
[1625286115621,0.24057544,33559.0,33558.0,0.86330009]
[1625286115722,0.29957544,33559.0,33558.0,0.86330009]
[1625286116621,0.29957544,33559.0,33558.0,0.77522823]
[1625286118876,0.38837544,33559.0,33558.0,0.77522823]
[1625286119883,0.38837544,33559.0,33558.0,0.86330151]
[1625286121186,0.38837544,33559.0,33558.0,0.51106014]
[1625286121287,0.65805191,33559.0,33558.0,0.51106014]
[1625286121488,0.65805191,33559.0,33558.0,0.33493089]
[1625286122691,0.65805191,33559.0,33558.0,0.24685761]
[1625286124093,0.56925191,33559.0,33558.0,0.24685761]
[1625286124645,0.56925191,33559.0,33558.0,0.00628217]
[1625286124745,0.62825191,33559.0,33558.0,0.00628217]
[1625286124949,0.86882735,33559.0,33558.0,0.00628217]
[1625286125049,5.95172735,33559.0,33557.0,0.00628404]
[1625286125148,0.0898,33558.0,33557.0,0.00628404]
[1625286125248,0.21922796,33558.0,33557.0,0.00628404]
[1625286125552,0.12942796,33558.0,33557.0,0.00628404]
[1625286125801,0.12942796,33558.0,33554.0,0.00628452]
[1625286126051,0.01142828,33557.0,33554.0,0.00628452]
[1625286126252,0.12942828,33557.0,33554.0,0.00628452]
[1625286126554,0.21842828,33557.0,33554.0,0.00628452]
[1625286126655,0.07042836,33556.0,33554.0,0.00628452]
[1625286126756,0.12942836,33556.0,33554.0,0.00628452]
[1625286126904,0.24057544,33555.0,33554.0,0.00628452]
[1625286127005,0.35857544,33555.0,33554.0,0.00628452]
[1625286127106,0.37000451,33555.0,33554.0,0.00628452]
[1625286127406,0.37000451,33555.0,33554.0,8.452e-05]
[1625286127555,0.37000451,33555.0,33553.0,0.0355]
[1625286127656,0.37000451,33555.0,33550.0,0.08808491]
[1625286127957,0.01144606,33554.0,33551.0,0.00627511]
[1625286128157,0.12944606,33554.0,33551.0,0.00627511]
[1625286128509,0.118,33554.0,33550.0,0.00627511]
[1625286128959,0.48115088,33551.0,33550.0,0.00627511]
[1625286129059,0.74759088,33551.0,33550.0,0.00627511]
[1625286129160,5.24129088,33551.0,33550.0,0.00627511]
[1625286129259,0.74759088,33551.0,33550.0,0.00627511]
[1625286129910,0.74759088,33551.0,33548.0,0.00627534]
[1625286130212,0.74759088,33551.0,33550.0,0.00627531]
[1625286130410,0.74759088,33551.0,33549.0,0.00627533]
[1625286130511,4.6264,33550.0,33549.0,0.00627533]
[1625286130612,4.6854,33550.0,33549.0,0.00627533]
[1625286130710,4.6854,33550.0,33548.0,0.0062753]
[1625286131010,4.6854,33550.0,33549.0,0.00627535]
[1625286131111,4.7743,33550.0,33549.0,0.00627535]
[1625286131261,4.7743,33550.0,33548.0,0.00627532]
[1625286131360,0.1479,33550.0,33548.0,0.00627532]
[1625286132512,0.1479,33550.0,33547.0,0.08807299]
[1625286133717,0.1479,33550.0,33546.0,0.50460476]
[1625286134218,0.1479,33550.0,33547.0,0.00627533]
[1625286134317,0.059,33550.0,33547.0,0.09426537]
[1625286134619,0.059,33550.0,33547.0,0.08799004]
[1625286134818,0.059,33550.0,33547.0,0.26396847]
[1625286135271,0.0888,33549.0,33547.0,0.26396847]
[1625286135423,4.0,33549.0,33547.0,0.08799004]
[1625286135722,0.1478,33549.0,33547.0,0.08799004]
[1625286136374,0.1478,33549.0,33546.0,0.8564505]
[1625286136525,0.0888,33549.0,33546.0,0.8564505]
[1625286136623,0.1478,33549.0,33546.0,0.8564505]
[1625286136977,0.24057544,33547.0,33546.0,0.8564505]
[1625286137274,0.24057544,33547.0,33546.0,0.86272512]
[1625286137476,0.24057544,33547.0,33546.0,0.33481845]
[1625286138025,0.24057544,33547.0,33546.0,0.51071699]
[1625286139127,0.24057544,33547.0,33546.0,0.86251006]
[1625286139428,0.24057544,33547.0,33546.0,0.51071699]
[1625286140482,0.24057544,33547.0,33546.0,0.7744635]
[1625286140836,0.24057544,33547.0,33546.0,1.47784433]
[1625286141387,0.24057544,33547.0,33546.0,0.77441903]
[1625286141835,0.24057544,33547.0,33546.0,1.12609543]
[1625286142937,0.24057544,33547.0,33546.0,1.34026543]
[1625286143541,0.24057544,33547.0,33546.0,1.69193155]
[1625286149955,0.24057544,33547.0,33546.0,1.75093155]
[1625286150155,0.24057544,33547.0,33546.0,1.69193155]
[1625286150256,0.24057544,33547.0,33546.0,2.74708182]
[1625286150557,0.24057544,33547.0,33546.0,1.69193155]
[1625286151109,0.24057544,33547.0,33546.0,1.75093155]
[1625286151511,0.24057544,33547.0,33546.0,2.80611728]
[1625286152312,0.24057544,33547.0,33546.0,4.03715791]
[1625286154018,0.24057544,33547.0,33546.0,2.80611728]
[1625286154921,0.24057544,33547.0,33546.0,4.03729478]
[1625286159432,0.24057544,33547.0,33546.0,5.44485772]
[1625286159880,0.24057544,33547.0,33546.0,4.03729478]
[1625286162037,0.24057544,33551.0,33546.0,4.03729478]
[1625286162286,0.24057544,33551.0,33550.0,1.23174103]
[1625286162590,0.24057544,33551.0,33550.0,1.23801255]
[1625286163191,0.24057544,33551.0,33550.0,1.47858799]
[1625286164595,0.24057544,33551.0,33550.0,0.77473597]
[1625286166649,0.24057544,33551.0,33550.0,1.47868951]
[1625286170006,0.24057544,33551.0,33550.0,1.67600951]
[1625286170208,0.24057544,33551.0,33550.0,2.73223273]
[1625286170307,0.24057544,33551.0,33550.0,2.79123273]
[1625286170711,0.24057544,33551.0,33550.0,4.02346513]
[1625286171157,0.24057544,33551.0,33550.0,4.26404057]
[1625286171507,0.24057544,33551.0,33550.0,4.20504057]
[1625286172307,0.24057544,33551.0,33550.0,2.97280817]
[1625286175465,0.45990544,33551.0,33550.0,2.97280817]
[1625286176465,0.45990544,33551.0,33550.0,1.91658495]
[1625286177917,0.24057544,33551.0,33550.0,1.91658495]
[1625286180822,0.24057544,33551.0,33550.0,1.21263141]
[1625286180923,0.29957544,33551.0,33550.0,1.01531141]
[1625286181224,0.29957544,33551.0,33550.0,1.36777747]
[1625286181528,0.24057544,33551.0,33550.0,1.36777747]
[1625286181676,0.24057544,33551.0,33550.0,1.01531141]
[1625286182279,0.29957544,33551.0,33550.0,1.01531141]
[1625286182430,0.31102546,33551.0,33550.0,1.01531141]
[1625286182527,0.31102546,33551.0,33550.0,1.36779212]
[1625286183479,0.31102546,33551.0,33550.0,1.01614499]
[1625286183577,0.62007546,33551.0,33550.0,1.01614499]
[1625286183928,0.62007546,33551.0,33550.0,1.36875235]
[1625286184783,0.62007546,33551.0,33550.0,1.01618836]
[1625286187091,0.60862544,33551.0,33550.0,1.01618836]
[1625286187236,0.60862544,33551.0,33546.0,0.78161326]
[1625286187340,0.057,33550.0,33541.0,0.74162203]
[1625286187437,0.557,33550.0,33541.0,0.74162203]
[1625286187536,0.675,33550.0,33541.0,0.74162203]
[1625286187639,0.01146024,33549.0,33541.0,0.74162203]
[1625286187738,0.12946024,33549.0,33542.0,0.00626942]
[1625286187838,5.0121,33543.0,33542.0,0.00626942]
[1625286187988,5.4847,33543.0,33542.0,0.00626942]
[1625286188189,0.48406138,33543.0,33542.0,0.00626942]
[1625286188644,7.22961939,33543.0,33542.0,0.00626942]
[1625286188742,7.22961939,33543.0,33541.0,0.0062706]
[1625286188941,7.22961939,33543.0,33537.0,0.00627083]
[1625286188942,0.01146213,33542.0,33537.0,0.00627083]
[1625286189144,1.73289896,33539.0,33537.0,0.00627083]
[1625286189243,0.77872632,33538.0,33534.0,0.08813712]
[1625286189448,0.89672632,33538.0,33534.0,0.08813712]
[1625286189601,0.89672632,33538.0,33532.0,0.08804696]
[1625286189849,0.89672632,33538.0,33535.0,0.00627098]
[1625286189999,0.89672632,33538.0,33533.0,0.00627106]
[1625286190351,0.89672632,33538.0,33532.0,0.08804696]
[1625286190549,0.89672632,33538.0,33533.0,0.00627119]
[1625286191252,0.29757544,33534.0,33533.0,0.00627119]
[1625286191401,0.58182544,33534.0,33532.0,0.08804696]
[1625286191602,0.58182544,33534.0,33531.0,0.08804856]
[1625286191702,0.64082544,33534.0,33531.0,0.08804856]
[1625286192053,0.64082544,33534.0,33530.0,0.08796717]
[1625286192405,0.64082544,33534.0,33528.0,0.08797297]
[1625286193255,0.77872632,33529.0,33528.0,0.08797297]
[1625286193357,0.77872632,33529.0,33526.0,0.08797721]
[1625286193506,0.89672632,33529.0,33526.0,0.08797721]
[1625286193708,0.89672632,33529.0,33524.0,0.08786188]
[1625286194710,0.89672632,33529.0,33523.0,0.08786313]
[1625286195260,0.53815088,33524.0,33523.0,0.08786313]
[1625286195408,0.80200088,33524.0,33523.0,0.08786313]
[1625286195709,0.80200088,33524.0,33522.0,0.08785501]
[1625286196110,0.80200088,33524.0,33521.0,0.08776233]
[1625286197362,0.29757544,33522.0,33520.0,0.08775162]
[1625286198415,0.29757544,33522.0,33519.0,0.08767656]
[1625286198818,0.35657544,33522.0,33519.0,0.08767656]
[1625286199268,0.24057544,33520.0,33519.0,0.08767656]
[1625286199368,0.35657544,33520.0,33519.0,0.08767656]
[1625286199569,0.35657544,33520.0,33510.0,7.3298]
[1625286199570,0.35657544,33520.0,33518.0,0.08766859]
[1625286200073,0.35657544,33520.0,33516.0,0.08759928]
[1625286200170,0.35657544,33520.0,33516.0,0.14659928]
[1625286201373,0.24057544,33517.0,33516.0,0.14659928]
[1625286201473,0.29757544,33517.0,33516.0,0.14659928]
[1625286201776,0.29757544,33517.0,33516.0,0.059]
[1625286201977,0.24057544,33517.0,33516.0,0.059]
[1625286202679,0.24057544,33517.0,33516.0,0.14652554]
[1625286203780,0.24057544,33517.0,33516.0,0.059]
[1625286204130,0.29757544,33517.0,33516.0,0.059]
[1625286205386,0.56779544,33517.0,33516.0,0.059]
[1625286207040,0.24057544,33517.0,33516.0,0.2496]
[1625286207235,0.24057544,33517.0,33516.0,0.3086]
[1625286207336,0.24057544,33517.0,33516.0,0.54917544]
[1625286210398,0.24057544,33517.0,33516.0,0.55544218]
[1625286211798,0.24057544,33517.0,33516.0,0.31486674]
[1625286212601,0.24057544,33517.0,33516.0,0.40220593]
[1625286214306,0.24057544,33517.0,33516.0,0.31486674]
[1625286215558,7.544e-05,33517.0,33516.0,0.31486674]
[1625286222622,7.544e-05,33517.0,33516.0,0.32370045]
[1625286223072,7.544e-05,33517.0,33516.0,1.37182459]
[1625286227681,7.544e-05,33517.0,33516.0,1.36299088]
[1625286227931,7.544e-05,33517.0,33516.0,0.31486674]
[1625286228334,7.544e-05,33517.0,33516.0,1.36390374]
[1625286231036,7.544e-05,33517.0,33516.0,1.37273752]
[1625286231536,7.544e-05,33517.0,33516.0,2.59774585]
[1625286232790,7.544e-05,33517.0,33516.0,3.99771585]
[1625286234544,7.544e-05,33517.0,33516.0,2.59774585]
[1625286235501,7.544e-05,33517.0,33516.0,3.99939545]
[1625286245781,7.544e-05,33517.0,33516.0,5.58418277]
[1625286247330,7.544e-05,33517.0,33516.0,6.28857577]
[1625286258254,7.544e-05,33517.0,33516.0,6.78857577]
[1625286258458,0.24057544,33523.0,33516.0,6.78857577]
[1625286258707,0.24057544,33523.0,33522.0,4.964]
[1625286258855,0.24057544,33523.0,33522.0,5.082]
[1625286259006,0.24057544,33523.0,33522.0,5.0970923]
[1625286259208,0.24057544,33523.0,33522.0,11.09206236]
[1625286259557,0.24057544,33523.0,33522.0,11.57321324]
[1625286266120,0.24057544,33523.0,33522.0,7.16514702]
[1625286266718,0.24057544,33523.0,33522.0,11.57464942]
[1625286273640,0.24057544,33523.0,33522.0,13.33770606]
[1625286274789,0.24057544,33523.0,33522.0,11.57464942]
[1625286276345,0.24057544,33526.0,33522.0,11.57464942]
[1625286276444,0.24057544,33526.0,33522.0,12.07464942]
[1625286276545,0.24057544,33530.0,33522.0,12.07464942]
[1625286276693,0.24057544,33530.0,33523.0,0.01509028]
[1625286276793,0.24057544,33530.0,33523.0,0.39148028]
[1625286276897,0.24057544,33530.0,33525.0,5.9915586]
[1625286276996,0.24057544,33530.0,33525.0,6.6095586]
[1625286277194,0.24057544,33530.0,33526.0,0.01509003]
[1625286277297,0.24057544,33530.0,33526.0,0.13309003]
[1625286277396,0.24057544,33530.0,33527.0,0.5]
[1625286277497,0.24057544,33530.0,33529.0,6.52007393]
[1625286277595,0.24057544,33530.0,33529.0,6.63807393]
[1625286277745,0.24057544,33530.0,33529.0,7.13431427]
[1625286278250,0.24057544,33530.0,33529.0,7.63431427]
[1625286279847,0.24057544,33530.0,33529.0,7.72271427]
[1625286280699,0.24057544,33530.0,33529.0,7.22271427]
[1625286281499,0.24057544,33530.0,33529.0,7.13431427]
[1625286282550,0.24057544,33530.0,33529.0,7.12548382]
[1625286284807,0.24057544,33530.0,33529.0,5.53951989]
[1625286284954,0.29757544,33530.0,33529.0,5.53951989]
[1625286285104,0.50335544,33530.0,33529.0,5.53951989]
[1625286285205,0.50335544,33530.0,33529.0,5.48051989]
[1625286285554,0.50335544,33530.0,33529.0,5.53951989]
[1625286285656,0.50335544,33530.0,33529.0,4.12977418]
[1625286286805,0.50335544,33530.0,33529.0,4.01177418]
[1625286287104,0.50335544,33530.0,33529.0,3.77119874]
[1625286287356,1.71405448,33530.0,33529.0,1.48036195]
[1625286287806,1.71405448,33530.0,33529.0,1.29878651]
[1625286287908,1.71405448,33530.0,33529.0,1.23978651]
[1625286288516,3.09657731,33530.0,33529.0,0.00625901]
[1625286290772,3.09657731,33530.0,33529.0,0.09425954]
[1625286290971,3.09657731,33530.0,33529.0,0.15325954]
[1625286291322,1.71405448,33530.0,33529.0,0.06525901]
[1625286291921,1.71405448,33530.0,33529.0,0.59323527]
[1625286292273,0.50335544,33530.0,33529.0,0.06525901]
[1625286292724,1.71365848,33530.0,33529.0,0.59327188]
[1625286293625,1.71365848,33530.0,33529.0,1.29725233]
[1625286295029,1.71365848,33530.0,33529.0,0.59327188]
[1625286296833,1.71365848,33530.0,33529.0,1.29732537]
[1625286297485,1.71365848,33530.0,33529.0,0.59327188]
[1625286300796,1.71365848,33530.0,33529.0,0.58701287]
[1625286301046,1.71365848,33530.0,33529.0,0.59327695]
[1625286302450,1.71365848,33530.0,33529.0,0.53427695]
[1625286302700,1.71365848,33530.0,33529.0,0.09428351]
[1625286302701,3.09360184,33530.0,33529.0,0.09428351]
[1625286303050,3.09360184,33530.0,33529.0,0.00626408]
[1625286303452,3.09360184,33530.0,33529.0,0.09428208]
[1625286305104,3.09360184,33530.0,33529.0,0.00626408]
[1625286306659,3.09360184,33530.0,33529.0,0.09429792]
[1625286307259,1.71365848,33530.0,33529.0,1.23878691]
[1625286307710,1.71365848,33530.0,33529.0,1.29778691]
[1625286307812,1.71365848,33530.0,33529.0,2.35428717]
[1625286308960,1.71365848,33530.0,33529.0,6.23378717]
[1625286310869,1.65665848,33530.0,33529.0,6.23378717]
[1625286310965,1.45087848,33530.0,33529.0,6.29278717]
[1625286311113,0.24057544,33530.0,33529.0,6.29278717]
[1625286311615,0.24057544,33530.0,33529.0,8.93469948]
[1625286311863,0.24057544,33530.0,33529.0,9.17527492]
[1625286313667,0.24057544,33530.0,33529.0,10.75995818]
[1625286313916,0.24057544,33530.0,33529.0,10.76878936]
[1625286314019,0.24057544,33530.0,33529.0,11.26878936]
[1625286314468,0.24057544,33530.0,33529.0,11.25995818]
[1625286314769,0.24057544,33530.0,33529.0,11.26878935]
[1625286317428,1.21658898,33538.0,33529.0,11.26878935]
[1625286317927,1.21658898,33538.0,33537.0,0.48115088]
[1625286318029,1.21658898,33538.0,33537.0,0.83902088]
[1625286318130,1.21658898,33538.0,33537.0,0.8452825]
[1625286318231,1.21665959,33540.0,33539.0,3.9444]
[1625286318379,1.21665959,33540.0,33539.0,4.0624]
[1625286318481,1.27365959,33540.0,33539.0,4.0624]
[1625286318579,1.27365959,33540.0,33539.0,6.3510188]
[1625286318729,1.27365959,33540.0,33539.0,6.35728058]
[1625286318931,2.66347399,33540.0,33539.0,5.30099498]
[1625286319230,2.66347399,33540.0,33539.0,1.35659498]
[1625286319433,2.66347399,33540.0,33539.0,2.41270268]
[1625286319533,1.27365959,33540.0,33539.0,2.41270268]
[1625286321485,1.27365959,33540.0,33539.0,1.35659498]
[1625286322386,1.27365959,33540.0,33539.0,1.29759498]
[1625286322586,1.27365959,33540.0,33539.0,1.35659498]
[1625286322686,1.27365959,33540.0,33539.0,1.29759498]
[1625286322786,1.27365959,33540.0,33539.0,1.35659498]
[1625286322886,1.27365959,33540.0,33539.0,1.29759498]
[1625286322986,1.27365959,33540.0,33539.0,1.35659498]
[1625286323087,1.27365959,33540.0,33539.0,1.29759498]
[1625286323189,2.66280988,33540.0,33539.0,0.65240458]
[1625286323289,2.66280988,33540.0,33539.0,0.59340458]
[1625286323387,2.66280988,33540.0,33539.0,0.65240458]
[1625286323489,2.66280988,33540.0,33539.0,0.59340458]
[1625286323587,2.66280988,33540.0,33539.0,0.65240458]
[1625286323839,2.66280988,33540.0,33539.0,0.59340458]
[1625286324090,2.66280988,33540.0,33539.0,0.65240458]
[1625286324239,2.66280988,33540.0,33539.0,0.59340458]
[1625286324489,2.66280988,33540.0,33539.0,0.65240458]
[1625286324590,2.66280988,33540.0,33539.0,0.94534459]
[1625286324795,2.66280988,33540.0,33539.0,1.00434459]
[1625286324941,2.66280988,33540.0,33539.0,0.94534459]
[1625286325041,1.27365959,33540.0,33539.0,0.65240458]
[1625286325141,1.27365959,33540.0,33539.0,0.59340458]
[1625286325342,1.27365959,33540.0,33539.0,0.65240458]
[1625286327144,1.27365959,33540.0,33539.0,0.59340458]
[1625286327796,1.27365959,33540.0,33539.0,0.94529343]
[1625286329048,1.27365959,33540.0,33539.0,1.00429343]
[1625286331255,1.27365959,33540.0,33539.0,1.29711278]
[1625286332307,1.27365959,33540.0,33539.0,1.35611278]
[1625286332406,1.27365959,33540.0,33539.0,1.29711278]